[Event "EYCC Open-U10 2019"]
[Site "Bratislava"]
[Date "2019.08.09"]
[Round "8.26"]
[White "Mehtizada, Murad"]
[Black "Deladerriere, Apollo"]
[Result "1-0"]
[ECO "D02"]
[WhiteElo "1516"]
[BlackElo "1696"]
[Annotator "NA"]
[PlyCount "111"]
[EventDate "2019.08.02"]
[EventType "swiss"]
[EventCountry "SVK"]
[SourceTitle "playchess.com"]
[Source "ChessBase"]
[SourceQuality "1"]
[TimeControl "40/5400+30:1800+30"]

1. d4 {[%emt 0:00:00]} Nf6 {[%emt 0:00:28]} 2. Bf4 {[%emt 0:00:00]} d5 {[%emt 0:00:49]} 3. Nf3 {[%emt 0:00:14]} e6 {[%emt 0:00:16]} 4. e3 {[%emt 0:00:07]} Bd6 {[%emt 0:00:30]} 5. Bg3 {[%emt 0:00:08]} O-O {[%emt 0:00:47]} 6. Bd3 {[%emt 0:00:14]} c5 {[%emt 0:00:28]} 7. c3 {[%emt 0:00:26]} Qc7 {[%emt 0:00:43]} 8. Nbd2 {[%emt 0:00:42]} Nbd7 {[%emt 0:00:39]} 9. O-O {[%emt 0:06:42]} Bxg3 {[%emt 0:01:10]} 10. hxg3 {[%emt 0:02:14]} e5 {[%emt 0:06:37]} 11. e4 {[%emt 0:05:49]} Re8 {[%emt 0:20:35]} 12. Re1 {[%emt 0:03:48]} Qd6 {[%emt 0:17:23]} 13. exd5 {[%emt 0:08:01]} Qxd5 {[%emt 0:05:00]} 14. Bc4 {[%emt 0:03:27]} Qd6 {[%emt 0:01:51]} 15. Qb3 {[%emt 0:02:06]} Re7 {[%emt 0:12:05]} 16. Ng5 {[%emt 0:01:03]} Qb6 {[%emt 0:05:32]} 17. Bxf7+ {[%emt 0:07:53]} Kf8 {[%emt 0:05:28]} 18. Bc4 {[%emt 0:11:01]} Qxb3 {[%emt 0:08:52]} 19. Bxb3 {[%emt 0:02:59]} Ke8 {[%emt 0:02:01]} 20. Nc4 {[%emt 0:01:58]} Nf8 {[%emt 0:03:47]} 21. Nd6+ {[%emt 0:00:47]} Kd8 {[%emt 0:00:56]} 22. dxe5 {[%emt 0:00:17]} Ne8 {[%emt 0:00:24]} 23. Ngf7+ {[%emt 0:02:37]} Kc7 {[%emt 0:00:31]} 24. Rad1 {[%emt 0:04:51]} Be6 {[%emt 0:00:42]} 25. Nxe8+ Raxe8 {[%emt 0:01:10]} 26. Nd6 {[%emt 0:06:19]} Ra8 {[%emt 0:00:21]} 27. c4 {[%emt 0:05:39]} Nd7 {[%emt 0:01:13]} 28. Bc2 {[%emt 0:01:34]} g6 {[%emt 0:01:31]} 29. f4 {[%emt 0:02:20]} Nb6 {[%emt 0:00:08]} 30. b3 {[%emt 0:00:53]} a6 {[%emt 0:00:27]} 31. Be4 {[%emt 0:01:01]} Rb8 {[%emt 0:00:22]} 32. Bf3 {[%emt 0:01:01]} Nc8 {[%emt 0:00:22]} 33. g4 {[%emt 0:00:58]} Na7 {[%emt 0:01:04]} 34. f5 {[%emt 0:00:35]} Bg8 {[%emt 0:00:30]} 35. f6 {[%emt 0:01:06]} Rd7 {[%emt 0:01:19]} 36. Nxb7 {[%emt 0:01:05]} Rxd1 {[%emt 0:00:44]} 37. Rxd1 {[%emt 0:00:07]} Nc6 {[%emt 0:01:00]} 38. Nxc5 {[%emt 0:00:14]} Rb6 {[%emt 0:00:43]} 39. e6 {[%emt 0:00:27]} Ne5 {[%emt 0:00:25]} 40. f7 {[%emt 0:00:00]} Bxf7 {[%emt 0:00:00]} 41. exf7 {[%emt 0:00:35]} Nxf7 {[%emt 0:01:21]} 42. Rd7+ {[%emt 0:00:15]} Kc8 {[%emt 0:00:22]} 43. Rxf7 {[%emt 0:00:07]} h5 44. Bb7+ Kd8 {[%emt 0:01:09]} 45. Bxa6 {[%emt 0:01:31]} hxg4 {[%emt 0:00:17]} 46. Bb5 {[%emt 0:00:41]} g3 {[%emt 0:00:13]} 47. Nb7+ {[%emt 0:00:33]} Kc8 {[%emt 0:00:19]} 48. c5 {[%emt 0:00:17]} Rxb5 {[%emt 0:01:12]} 49. Nd6+ {[%emt 0:00:02]} Kb8 {[%emt 0:00:04]} 50. Nxb5 {[%emt 0:00:11]} g5 {[%emt 0:00:06]} 51. c6 {[%emt 0:00:08]} g4 {[%emt 0:00:05]} 52. c7+ {[%emt 0:00:07]} Kb7 {[%emt 0:00:01]} 53. Nd6+ {[%emt 0:00:08]} Kb6 {[%emt 0:00:06]} 54. c8=Q {[%emt 0:00:13]} Ka5 {[%emt 0:00:05]} 55. Ra7+ {[%emt 0:00:15]} Kb6 {[%emt 0:00:12]} 56. Qc7# {[%emt 0:00:45]} 1-0

[Event "EYCC Open-U10 2019"]
[Site "Bratislava"]
[Date "2019.08.09"]
[Round "8.27"]
[White "Sava, Robert-Gabriel"]
[Black "Jaakkola, Niklas"]
[Result "0-1"]
[ECO "B24"]
[WhiteElo "1292"]
[BlackElo "1587"]
[Annotator "NA"]
[PlyCount "140"]
[EventDate "2019.08.02"]
[EventType "swiss"]
[EventCountry "SVK"]
[SourceTitle "playchess.com"]
[Source "ChessBase"]
[SourceQuality "1"]
[TimeControl "40/5400+30:1800+30"]

1. e4 {[%emt 0:00:00]} c5 {[%emt 0:00:00]} 2. Nc3 {[%emt 0:00:00]} Nc6 {[%emt 0:00:01]} 3. g3 {[%emt 0:00:00]} g6 {[%emt 0:00:39]} 4. Bg2 {[%emt 0:00:18]} Bg7 {[%emt 0:00:50]} 5. d3 {[%emt 0:00:24]} e6 {[%emt 0:02:34]} 6. Be3 {[%emt 0:00:24]} d6 {[%emt 0:00:31]} 7. Qd2 {[%emt 0:01:02]} Nge7 {[%emt 0:00:22]} 8. Nge2 {[%emt 0:00:40]} Nd4 {[%emt 0:10:40]} 9. O-O {[%emt 0:00:52]} O-O {[%emt 0:05:23]} 10. Nd1 {[%emt 0:04:03]} Nec6 {[%emt 0:22:17]} 11. c3 {[%emt 0:01:17]} Nxe2+ {[%emt 0:00:05]} 12. Qxe2 {[%emt 0:00:10]} e5 {[%emt 0:00:25]} 13. Qd2 {[%emt 0:00:31]} Bd7 {[%emt 0:07:19]} 14. f4 {[%emt 0:00:37]} f6 {[%emt 0:05:09]} 15. h3 {[%emt 0:00:29]} Qe7 {[%emt 0:09:40]} 16. Rc1 {[%emt 0:00:51]} a6 {[%emt 0:07:01]} 17. Kh2 {[%emt 0:00:34]} b5 {[%emt 0:00:45]} 18. Nf2 {[%emt 0:00:23]} Rac8 {[%emt 0:04:07]} 19. Nh1 {[%emt 0:00:23]} Rb8 {[%emt 0:04:14]} 20. g4 {[%emt 0:00:25]} a5 {[%emt 0:01:00]} 21. Ng3 {[%emt 0:00:10]} b4 {[%emt 0:00:29]} 22. f5 {[%emt 0:00:51]} g5 {[%emt 0:00:08]} 23. Nh5 {[%emt 0:00:10]} Rfc8 {[%emt 0:02:04]} 24. Bxg5 {[%emt 0:03:00]} Qf7 {[%emt 0:01:29]} 25. Bh6 {[%emt 0:00:10]} Bh8 {[%emt 0:00:18]} 26. Rg1 {[%emt 0:00:38]} Qxa2 {[%emt 0:00:31]} 27. Ra1 {[%emt 0:02:06]} bxc3 {[%emt 0:00:27]} 28. Qxc3 {[%emt 0:00:15]} Qb3 {[%emt 0:00:12]} 29. Qe1 {[%emt 0:00:34]} Be8 {[%emt 0:02:05]} 30. Qh4 {[%emt 0:01:11]} Bxh5 {[%emt 0:01:10]} 31. gxh5 {[%emt 0:01:14]} Kf7 {[%emt 0:01:01]} 32. Bc1 {[%emt 0:08:29]} Qxd3 {[%emt 0:03:28]} 33. Ra3 {[%emt 0:00:32]} Rb3 {[%emt 0:01:04]} 34. Bf1 {[%emt 0:02:07]} Qc2+ {[%emt 0:01:21]} 35. Rg2 {[%emt 0:00:18]} Qxc1 {[%emt 0:00:17]} 36. Rxb3 {[%emt 0:00:06]} Qxf1 {[%emt 0:00:15]} 37. Rb7+ {[%emt 0:00:08]} Ne7 {[%emt 0:00:51]} 38. Rf2 {[%emt 0:01:17]} Qa6 {[%emt 0:00:25]} 39. Rb3 {[%emt 0:00:22]} h6 {[%emt 0:00:24]} 40. Rg3 {[%emt 0:00:00]} Qc4 {[%emt 0:00:00]} 41. Rg4 {[%emt 0:06:38]} d5 {[%emt 0:03:03]} 42. exd5 {[%emt 0:02:38]} Qxd5 {[%emt 0:00:13]} 43. Ra4 {[%emt 0:01:36]} c4 {[%emt 0:04:02]} 44. Qg4 {[%emt 0:05:09]} Qb5 {[%emt 0:02:05]} 45. Ra1 {[%emt 0:04:41]} c3 {[%emt 0:13:05]} 46. bxc3 {[%emt 0:01:39]} Rxc3 {[%emt 0:00:53]} 47. Qe2 {[%emt 0:00:13]} Qxe2 {[%emt 0:01:58]} 48. Rxe2 {[%emt 0:02:04]} Nxf5 {[%emt 0:00:08]} 49. Rxa5 {[%emt 0:00:28]} Bg7 {[%emt 0:02:17]} 50. Ra7+ {[%emt 0:04:25]} Ke6 {[%emt 0:00:38]} 51. Rb2 {[%emt 0:01:22]} Bf8 {[%emt 0:02:16]} 52. Rb6+ {[%emt 0:00:35]} Bd6 {[%emt 0:00:22]} 53. Ra5 {[%emt 0:01:14]} e4+ {[%emt 0:01:42]} 54. Kg2 {[%emt 0:02:27]} Rg3+ {[%emt 0:01:10]} 55. Kf1 {[%emt 0:01:51]} Rxh3 {[%emt 0:00:37]} 56. Rxf5 {[%emt 0:01:54]} Kxf5 {[%emt 0:00:07]} 57. Rxd6 {[%emt 0:00:05]} Rxh5 {[%emt 0:00:22]} 58. Ra6 {[%emt 0:00:23]} Kg5 {[%emt 0:00:22]} 59. Ke2 {[%emt 0:00:17]} f5 {[%emt 0:00:14]} 60. Ke3 {[%emt 0:00:19]} Rh3+ {[%emt 0:00:13]} 61. Kd4 {[%emt 0:00:14]} Rd3+ {[%emt 0:00:15]} 62. Ke5 {[%emt 0:00:21]} e3 {[%emt 0:00:16]} 63. Ra1 {[%emt 0:00:07]} Kg4 {[%emt 0:00:41]} 64. Ra4+ {[%emt 0:01:17]} Kg3 {[%emt 0:01:08]} 65. Kxf5 {[%emt 0:00:33]} e2 {[%emt 0:00:07]} 66. Rg4+ {[%emt 0:01:01]} Kf2 {[%emt 0:00:15]} 67. Rh4 {[%emt 0:00:50]} e1=Q {[%emt 0:00:21]} 68. Rxh6 {[%emt 0:00:22]} Rd5+ {[%emt 0:00:10]} 69. Kf4 {[%emt 0:00:16]} Qe3+ {[%emt 0:00:22]} 70. Kg4 {[%emt 0:00:06]} Qg3# {[%emt 0:00:06]} 0-1

[Event "EYCC Open-U10 2019"]
[Site "Bratislava"]
[Date "2019.08.09"]
[Round "8.28"]
[White "Panda, Barnabas"]
[Black "Cruceru-Uceanu, Tudor-Mihai"]
[Result "1/2-1/2"]
[ECO "E59"]
[WhiteElo "1625"]
[BlackElo "1234"]
[Annotator "NA"]
[PlyCount "74"]
[EventDate "2019.08.02"]
[EventType "swiss"]
[EventCountry "SVK"]
[SourceTitle "playchess.com"]
[Source "ChessBase"]
[SourceQuality "1"]
[TimeControl "40/5400+30:1800+30"]

1. d4 {[%emt 0:00:00]} Nf6 {[%emt 0:00:00]} 2. c4 {[%emt 0:00:00]} e6 {[%emt 0:00:00]} 3. Nc3 {[%emt 0:00:28]} Bb4 {[%emt 0:00:00]} 4. e3 {[%emt 0:00:45]} d5 {[%emt 0:00:04]} 5. Nf3 {[%emt 0:01:23]} O-O {[%emt 0:00:23]} 6. Bd3 {[%emt 0:02:01]} c5 {[%emt 0:01:12]} 7. O-O {[%emt 0:01:11]} Nc6 {[%emt 0:00:40]} 8. a3 {[%emt 0:03:18]} Bxc3 {[%emt 0:01:22]} 9. bxc3 {[%emt 0:00:24]} dxc4 {[%emt 0:02:22]} 10. Bxc4 {[%emt 0:01:22]} Qc7 {[%emt 0:00:07]} 11. Qc2 {[%emt 0:03:03]} e5 {[%emt 0:03:34]} 12. Bd3 {[%emt 0:08:01]} b6 {[%emt 0:03:18]} 13. Bb2 {[%emt 0:06:54]} Bb7 {[%emt 0:01:09]} 14. c4 {[%emt 0:03:58]} exd4 {[%emt 0:00:56]} 15. exd4 {[%emt 0:00:30]} cxd4 {[%emt 0:00:21]} 16. Nxd4 {[%emt 0:01:07]} Ne7 {[%emt 0:04:40]} 17. Nf5 {[%emt 0:09:55]} Nxf5 {[%emt 0:00:48]} 18. Bxf5 {[%emt 0:00:46]} Qc6 {[%emt 0:00:11]} 19. f3 {[%emt 0:01:08]} h6 {[%emt 0:00:08]} 20. Rfe1 {[%emt 0:02:26]} Rfe8 {[%emt 0:02:36]} 21. Rad1 {[%emt 0:03:16]} Rxe1+ {[%emt 0:01:34]} 22. Rxe1 {[%emt 0:00:21]} Re8 {[%emt 0:00:46]} 23. Rd1 {[%emt 0:02:57]} Bc8 {[%emt 0:02:51]} 24. Bd3 {[%emt 0:05:35]} Nd7 {[%emt 0:01:57]} 25. Be4 {[%emt 0:03:29]} Qc5+ {[%emt 0:00:25]} 26. Bd4 {[%emt 0:04:19]} Qg5 {[%emt 0:00:19]} 27. Qa4 {[%emt 0:02:14]} a5 {[%emt 0:04:25]} 28. Bxb6 {[%emt 0:08:46]} Rxe4 {[%emt 0:01:01]} 29. fxe4 {[%emt 0:00:51]} Nxb6 {[%emt 0:00:08]} 30. Qe8+ {[%emt 0:00:30]} Kh7 {[%emt 0:00:09]} 31. Qxf7 {[%emt 0:00:49]} Qe3+ {[%emt 0:00:35]} 32. Qf2 {[%emt 0:00:43]} Qb3 {[%emt 0:00:26]} 33. Qe2 {[%emt 0:04:22]} Ba6 {[%emt 0:01:23]} 34. e5 {[%emt 0:01:06]} Qxc4 {[%emt 0:01:21]} 35. Qxc4 {[%emt 0:01:09]} Nxc4 {[%emt 0:01:40]} 36. e6 {[%emt 0:01:53]} Kg6 {[%emt 0:00:18]} 37. Re1 {[%emt 0:01:01]} Bb5 1/2-1/2

[Event "EYCC Open-U10 2019"]
[Site "Bratislava"]
[Date "2019.08.09"]
[Round "8.29"]
[White "Batozhargalov, Erdem"]
[Black "Bazilius, Augustinas"]
[Result "1/2-1/2"]
[ECO "B09"]
[WhiteElo "1080"]
[BlackElo "1666"]
[Annotator "NA"]
[PlyCount "89"]
[EventDate "2019.08.02"]
[EventType "swiss"]
[EventCountry "SVK"]
[SourceTitle "playchess.com"]
[Source "ChessBase"]
[SourceQuality "1"]
[TimeControl "40/5400+30:1800+30"]

1. e4 {[%emt 0:00:00]} d6 {[%emt 0:00:00]} 2. d4 {[%emt 0:00:00]} Nf6 {[%emt 0:00:00]} 3. Nc3 {[%emt 0:00:00]} g6 {[%emt 0:00:01]} 4. f4 {[%emt 0:00:00]} c6 {[%emt 0:00:30]} 5. Nf3 {[%emt 0:00:11]} Bg7 {[%emt 0:00:24]} 6. Bd3 {[%emt 0:01:23]} O-O {[%emt 0:08:24]} 7. e5 {[%emt 0:00:06]} Nd5 {[%emt 0:00:59]} 8. Nxd5 {[%emt 0:03:48]} cxd5 {[%emt 0:00:24]} 9. O-O {[%emt 0:00:04]} Nc6 {[%emt 0:03:27]} 10. c3 {[%emt 0:00:49]} dxe5 {[%emt 0:04:11]} 11. fxe5 {[%emt 0:00:28]} Qb6 {[%emt 0:00:31]} 12. Kh1 {[%emt 0:01:22]} Bg4 {[%emt 0:06:48]} 13. Qe1 {[%emt 0:02:35]} f6 {[%emt 0:07:50]} 14. exf6 {[%emt 0:03:54]} exf6 {[%emt 0:02:18]} 15. Qf2 {[%emt 0:06:13]} Rad8 {[%emt 0:10:03]} 16. Bf4 {[%emt 0:02:12]} Bxf3 {[%emt 0:03:00]} 17. gxf3 {[%emt 0:00:09]} Rfe8 {[%emt 0:03:41]} 18. Rg1 {[%emt 0:03:09]} g5 {[%emt 0:06:21]} 19. Bxg5 {[%emt 0:12:03]} fxg5 {[%emt 0:00:41]} 20. Rxg5 {[%emt 0:00:39]} Qc7 {[%emt 0:00:56]} 21. Qh4 {[%emt 0:01:42]} Qf7 {[%emt 0:02:28]} 22. Qxh7+ {[%emt 0:13:10]} Kf8 {[%emt 0:00:14]} 23. Rf5 {[%emt 0:00:14]} Bf6 {[%emt 0:00:46]} 24. Qh6+ {[%emt 0:00:14]} Ke7 {[%emt 0:00:11]} 25. Re1+ {[%emt 0:01:11]} Kd7 {[%emt 0:00:17]} 26. Rxe8 {[%emt 0:00:20]} Qxe8 {[%emt 0:02:46]} 27. Rxf6 {[%emt 0:00:27]} Qe1+ {[%emt 0:00:29]} 28. Kg2 {[%emt 0:00:10]} Rg8+ {[%emt 0:00:11]} 29. Kh3 {[%emt 0:01:17]} Qe8 {[%emt 0:02:57]} 30. Qf4 {[%emt 0:10:51]} Qh5+ {[%emt 0:01:37]} 31. Qh4 {[%emt 0:00:14]} Qe8 {[%emt 0:00:13]} 32. Bf5+ {[%emt 0:01:29]} Kc7 {[%emt 0:00:22]} 33. Qf4+ {[%emt 0:00:10]} Kb6 {[%emt 0:01:37]} 34. Qh4 {[%emt 0:14:01]} Qe2 {[%emt 0:01:18]} 35. Bg6 {[%emt 0:01:14]} Qxb2 {[%emt 0:04:11]} 36. Qh7 {[%emt 0:00:26]} Rb8 {[%emt 0:02:23]} 37. Qd7 {[%emt 0:02:09]} Qxa2 {[%emt 0:02:16]} 38. Qd6 {[%emt 0:00:07]} Rh8+ {[%emt 0:00:53]} 39. Kg4 {[%emt 0:01:23]} Qg2+ {[%emt 0:05:37]} 40. Qg3 {[%emt 0:00:00]} Rxh2 {[%emt 0:00:00]} 41. Qxg2 {[%emt 0:01:19]} Rxg2+ {[%emt 0:03:43]} 42. Kh3 {[%emt 0:01:16]} Re2 {[%emt 0:00:28]} 43. Bf7 Re3 44. Bxd5 Rxc3 45. Bxc6 1/2-1/2

[Event "EYCC Open-U10 2019"]
[Site "Bratislava"]
[Date "2019.08.09"]
[Round "8.30"]
[White "Dotzer, Lukas"]
[Black "Gut, Lionel"]
[Result "1-0"]
[ECO "B80"]
[WhiteElo "1070"]
[BlackElo "1583"]
[Annotator "NA"]
[PlyCount "115"]
[EventDate "2019.08.02"]
[EventType "swiss"]
[EventCountry "SVK"]
[SourceTitle "playchess.com"]
[Source "ChessBase"]
[SourceQuality "1"]
[TimeControl "40/5400+30:1800+30"]

1. e4 c5 2. Nf3 e6 3. d4 cxd4 4. Nxd4 d6 5. Nc3 Nf6 6. Be3 a6 7. f3 b5 8. a3 Bb7 9. Qd2 Nbd7 10. O-O-O Rc8 11. Kb1 Qc7 12. g4 Nb6 13. Ndxb5 axb5 14. Nxb5 Qd8 15. Bxb6 Qxb6 16. Nxd6+ Bxd6 17. Qxd6 Qxd6 18. Rxd6 Ke7 19. Rd2 Rc5 20. Bd3 Nd7 21. Rhd1 h5 22. Bb5 Nb6 23. Rd7+ Nxd7 24. Rxd7+ Kf6 25. Rxb7 hxg4 26. fxg4 Rxh2 27. Bd3 Rg2 28. b4 Rc3 29. a4 Rxg4 30. a5 Rh4 31. Kb2 Rc8 32. a6 g5 33. a7 Ra8 34. b5 g4 35. b6 g3 36. Bf1 Rhh8 37. e5+ Kxe5 38. Bg2 Rh4 39. Rxf7 Rb4+ 40. Kc3 Rxb6 41. Bxa8 Ra6 42. Bg2 Rxa7 43. Rxa7 Kf4 44. Rf7+ Ke3 45. Re7 Kf2 46. Bc6 g2 47. Bxg2 Kxg2 48. Rxe6 Kf3 49. Kd2 Kf4 50. c4 Kf5 51. Re1 Kf6 52. c5 Kf7 53. c6 Kf8 54. c7 Kf7 55. c8=Q Kf6 56. Qf8+ Kg6 57. Rg1+ Kh7 58. Qg7# 1-0

[Event "EYCC Open-U10 2019"]
[Site "Bratislava"]
[Date "2019.08.09"]
[Round "8.31"]
[White "Perossa, Nicolas"]
[Black "Romanov, Vladislav O."]
[Result "1/2-1/2"]
[ECO "B24"]
[WhiteElo "1661"]
[BlackElo "1099"]
[Annotator "NA"]
[PlyCount "82"]
[EventDate "2019.08.02"]
[EventType "swiss"]
[EventCountry "SVK"]
[SourceTitle "playchess.com"]
[Source "ChessBase"]
[SourceQuality "1"]
[TimeControl "40/5400+30:1800+30"]

1. e4 c5 2. Nc3 Nc6 3. d3 g6 4. Be3 Nd4 5. Nce2 Bg7 6. c3 Nxe2 7. Bxe2 d6 8. Nf3 Nf6 9. h3 Bd7 10. O-O O-O 11. Kh1 Rb8 12. Qd2 Re8 13. Rab1 b5 14. e5 Nd5 15. Bf4 Nxf4 16. Qxf4 h6 17. Rfe1 Be6 18. exd6 exd6 19. d4 Bf5 20. Rbd1 Re4 21. Qc1 c4 22. Nd2 Re8 23. Bf3 Rxe1+ 24. Rxe1 Be6 25. a3 a5 26. Nf1 b4 27. d5 Bd7 28. cxb4 axb4 29. Qxc4 Bb5 30. Qf4 Bxf1 31. Rxf1 Qf6 32. Qxf6 Bxf6 33. axb4 Rxb4 34. Rb1 Rxb2 35. Rf1 Bd4 36. Kg1 Kg7 37. g4 f6 38. Kg2 f5 39. Kg3 Kf6 40. Bg2 Rb3+ 41. f3 f4+ 1/2-1/2

[Event "EYCC Open-U10 2019"]
[Site "Bratislava"]
[Date "2019.08.09"]
[Round "8.33"]
[White "Povshednyi, Ivan"]
[Black "Georgiadis, Anastasios"]
[Result "1-0"]
[ECO "A45"]
[WhiteElo "1872"]
[BlackElo "1391"]
[Annotator "NA"]
[PlyCount "156"]
[EventDate "2019.08.02"]
[EventType "swiss"]
[EventCountry "SVK"]
[SourceTitle "playchess.com"]
[Source "ChessBase"]
[SourceQuality "1"]
[TimeControl "40/5400+30:1800+30"]

1. d4 Nf6 2. Nd2 d5 3. Ngf3 e6 4. e3 c5 5. dxc5 Bxc5 6. a3 O-O 7. Be2 Nbd7 8. O-O Qc7 9. b4 Bd6 10. Bb2 e5 11. h3 Nb6 12. c4 dxc4 13. Nxc4 Nxc4 14. Bxc4 b6 15. Rc1 Qe7 16. Bb5 Bb7 17. Bc6 Bxc6 18. Rxc6 Rfd8 19. Qc2 e4 20. Nd2 Be5 21. Bxe5 Qxe5 22. Nb3 Nd5 23. Rd1 Ne7 24. Rxd8+ Rxd8 25. Rc4 f5 26. Rd4 Rc8 27. Qd2 Nc6 28. Rd5 Qe6 29. b5 Ne7 30. Rd8+ Rxd8 31. Qxd8+ Kf7 32. Qd1 g6 33. Nd4 Qd7 34. Qb3+ Kf6 35. Qb2 Kf7 36. Qb3+ Kf6 37. Qc3 Nd5 38. Qb2 Kf7 39. Nc6 Qd6 40. Nxa7 Qc5 41. Nc6 Nc3 42. Nd4 Qc4 43. Qc2 Kf6 44. a4 Qd3 45. a5 Qxc2 46. Nxc2 Nxb5 47. axb6 Nd6 48. Kh2 Ke7 49. Nd4 Kd7 50. Kg3 Nc4 51. b7 Kc7 52. Ne6+ Kxb7 53. Nf8 Kc6 54. Nxh7 Ne5 55. Kh4 Nd3 56. f3 exf3 57. gxf3 Kd5 58. Nf8 Ne5 59. Kg3 g5 60. f4 Nf7 61. Nh7 g4 62. hxg4 fxg4 63. Nf6+ Ke6 64. Nxg4 Nd6 65. Kf3 Kf5 66. Nf2 Nc4 67. e4+ Kf6 68. Ng4+ Ke6 69. f5+ Kf7 70. Kf4 Nd6 71. e5 Ne8 72. e6+ Kf8 73. Ke5 Ng7 74. f6 Nh5 75. Kd6 Ke8 76. f7+ Kf8 77. Kd7 Nf4 78. e7+ Kg7 1-0

[Event "EYCC Open-U10 2019"]
[Site "Bratislava"]
[Date "2019.08.09"]
[Round "8.34"]
[White "Jasso, Matej"]
[Black "Csernyik, Mark"]
[Result "0-1"]
[ECO "B01"]
[WhiteElo "1419"]
[BlackElo "1648"]
[Annotator "NA"]
[PlyCount "88"]
[EventDate "2019.08.02"]
[EventType "swiss"]
[EventCountry "SVK"]
[SourceTitle "playchess.com"]
[Source "ChessBase"]
[SourceQuality "1"]
[TimeControl "40/5400+30:1800+30"]

1. e4 {[%emt 0:00:00]} d5 {[%emt 0:00:00]} 2. e5 {[%emt 0:00:00]} c5 {[%emt 0:00:00]} 3. c3 {[%emt 0:00:00]} Nc6 {[%emt 0:01:10]} 4. d4 {[%emt 0:00:10]} cxd4 {[%emt 0:05:08]} 5. cxd4 {[%emt 0:00:12]} Bf5 {[%emt 0:00:39]} 6. Nf3 {[%emt 0:01:39]} e6 {[%emt 0:01:36]} 7. Bb5 {[%emt 0:04:20]} Bb4+ {[%emt 0:00:56]} 8. Bd2 {[%emt 0:03:28]} Bxd2+ {[%emt 0:02:00]} 9. Qxd2 {[%emt 0:04:58]} Nge7 {[%emt 0:00:16]} 10. O-O {[%emt 0:00:50]} O-O {[%emt 0:01:55]} 11. Nc3 {[%emt 0:04:40]} Bg4 {[%emt 0:02:16]} 12. Ne1 {[%emt 0:07:28]} Qb6 {[%emt 0:00:51]} 13. Be2 {[%emt 0:06:19]} Bxe2 {[%emt 0:01:40]} 14. Nxe2 {[%emt 0:01:42]} Nf5 {[%emt 0:01:01]} 15. Nf3 {[%emt 0:00:14]} Rac8 {[%emt 0:00:23]} 16. Rac1 {[%emt 0:02:38]} a5 {[%emt 0:02:51]} 17. Rfd1 {[%emt 0:03:07]} Rc7 {[%emt 0:07:15]} 18. Ng3 {[%emt 0:03:15]} Nxg3 {[%emt 0:02:08]} 19. hxg3 {[%emt 0:00:08]} Rfc8 {[%emt 0:00:11]} 20. a3 {[%emt 0:00:47]} h6 {[%emt 0:00:26]} 21. Rc3 {[%emt 0:01:39]} a4 {[%emt 0:01:55]} 22. Qc2 {[%emt 0:05:51]} Qa7 {[%emt 0:01:58]} 23. Rc1 {[%emt 0:01:30]} b5 {[%emt 0:00:28]} 24. Qd2 {[%emt 0:00:50]} Na5 {[%emt 0:01:36]} 25. Qd3 {[%emt 0:03:11]} Nc4 {[%emt 0:02:59]} 26. Qe2 {[%emt 0:04:42]} Qb6 {[%emt 0:01:38]} 27. g4 {[%emt 0:12:16]} b4 {[%emt 0:04:50]} 28. axb4 {[%emt 0:01:10]} Qxb4 {[%emt 0:00:16]} 29. g5 {[%emt 0:00:58]} h5 {[%emt 0:02:40]} 30. Nh4 {[%emt 0:01:21]} g6 {[%emt 0:00:15]} 31. g4 {[%emt 0:01:46]} Kg7 {[%emt 0:00:48]} 32. gxh5 {[%emt 0:01:51]} Rh8 {[%emt 0:00:37]} 33. Qf3 {[%emt 0:02:23]} Rxh5 {[%emt 0:01:22]} 34. Qf6+ {[%emt 0:00:18]} Kh7 {[%emt 0:00:22]} 35. Rh3 {[%emt 0:09:57]} Qd2 {[%emt 0:01:13]} 36. Rcc3 {[%emt 0:03:16]} Qxg5+ {[%emt 0:01:03]} 37. Qxg5 {[%emt 0:03:50]} Rxg5+ {[%emt 0:00:11]} 38. Ng2+ {[%emt 0:00:07]} Kg7 {[%emt 0:00:16]} 39. b3 {[%emt 0:01:09]} axb3 {[%emt 0:01:07]} 40. Rxb3 {[%emt 0:00:00]} Nd2 {[%emt 0:00:00]} 41. Rb2 {[%emt 0:01:05]} Rc1+ {[%emt 0:02:02]} 42. Kh2 {[%emt 0:00:08]} Nf1+ {[%emt 0:00:08]} 43. Kh1 {[%emt 0:00:54]} Ne3+ {[%emt 0:00:39]} 44. Ne1 {[%emt 0:01:03]} Rxe1+ {[%emt 0:00:09]} 0-1

[Event "EYCC Open-U10 2019"]
[Site "Bratislava"]
[Date "2019.08.09"]
[Round "8.35"]
[White "Udipi, Kala Kishan"]
[Black "Setina, Vaclav"]
[Result "1-0"]
[ECO "D02"]
[WhiteElo "1732"]
[BlackElo "1415"]
[Annotator "NA"]
[PlyCount "79"]
[EventDate "2019.08.02"]
[EventType "swiss"]
[EventCountry "SVK"]
[SourceTitle "playchess.com"]
[Source "ChessBase"]
[SourceQuality "1"]
[TimeControl "40/5400+30:1800+30"]

1. d4 {[%emt 0:00:00]} d5 {[%emt 0:00:00]} 2. Nf3 {[%emt 0:00:00]} Nf6 {[%emt 0:00:00]} 3. Bf4 {[%emt 0:00:11]} Bf5 {[%emt 0:00:00]} 4. e3 {[%emt 0:00:45]} e6 {[%emt 0:00:00]} 5. Bd3 {[%emt 0:01:56]} Bxd3 {[%emt 0:00:19]} 6. cxd3 {[%emt 0:00:10]} Bd6 {[%emt 0:03:48]} 7. Bxd6 {[%emt 0:03:34]} Qxd6 {[%emt 0:01:45]} 8. O-O {[%emt 0:01:07]} O-O {[%emt 0:00:18]} 9. Nc3 {[%emt 0:01:08]} Nc6 {[%emt 0:06:07]} 10. Rc1 {[%emt 0:04:27]} Rad8 {[%emt 0:12:54]} 11. a3 {[%emt 0:02:17]} a6 {[%emt 0:06:53]} 12. Qb3 {[%emt 0:03:44]} b6 {[%emt 0:18:44]} 13. Qa4 {[%emt 0:05:52]} b5 {[%emt 0:03:05]} 14. Qc2 {[%emt 0:10:17]} e5 {[%emt 0:06:25]} 15. Nxb5 {[%emt 0:01:10]} axb5 {[%emt 0:10:31]} 16. Qxc6 {[%emt 0:00:42]} e4 {[%emt 0:03:03]} 17. Ne5 {[%emt 0:11:43]} b4 {[%emt 0:08:44]} 18. Qxd6 {[%emt 0:03:15]} Rxd6 {[%emt 0:04:12]} 19. Rxc7 {[%emt 0:01:55]} bxa3 {[%emt 0:00:51]} 20. bxa3 {[%emt 0:00:08]} Ra6 {[%emt 0:00:43]} 21. Ra1 {[%emt 0:02:21]} Rb8 {[%emt 0:02:27]} 22. h3 {[%emt 0:01:41]} exd3 23. Nxd3 {[%emt 0:00:52]} g6 {[%emt 0:03:08]} 24. Nc5 {[%emt 0:01:38]} Ra5 {[%emt 0:04:05]} 25. a4 {[%emt 0:02:58]} Ne4 {[%emt 0:02:47]} 26. Nxe4 {[%emt 0:01:28]} dxe4 {[%emt 0:00:02]} 27. Rc5 {[%emt 0:01:00]} Rxc5 {[%emt 0:01:31]} 28. dxc5 {[%emt 0:00:15]} Rc8 {[%emt 0:00:38]} 29. Rc1 {[%emt 0:00:23]} Kf8 {[%emt 0:00:46]} 30. c6 {[%emt 0:00:59]} Rc7 {[%emt 0:00:06]} 31. Rc4 {[%emt 0:00:52]} f5 {[%emt 0:00:45]} 32. Kh2 {[%emt 0:00:29]} Ke8 {[%emt 0:00:51]} 33. Kg3 {[%emt 0:00:49]} Kd8 {[%emt 0:00:20]} 34. Rd4+ {[%emt 0:00:40]} Ke8 {[%emt 0:00:33]} 35. Rd6 {[%emt 0:00:46]} Ra7 36. Rd7 {[%emt 0:00:29]} Rxd7 {[%emt 0:00:59]} 37. cxd7+ {[%emt 0:01:05]} Kxd7 {[%emt 0:00:01]} 38. Kf4 {[%emt 0:00:18]} Kc6 {[%emt 0:01:02]} 39. Kg5 {[%emt 0:00:11]} Kb6 {[%emt 0:00:19]} 40. Kh6 1-0